[Event "XII Sabadell Open 2019"]
[Site "Sabadell"]
[Date "2019.09.07"]
[Round "6.3"]
[White "Oliva Castaneda, Kevel"]
[Black "Lorenzo De La Riva, Lazaro"]
[Result "1-0"]
[ECO "E90"]
[WhiteElo "2470"]
[BlackElo "2392"]
[Annotator "ChessBase"]
[PlyCount "135"]
[EventDate "2019.09.01"]
[EventCountry "ESP"]
[SourceTitle "playchess.com"]
[Source "ChessBase"]
[SourceQuality "1"]
[TimeControl "5400+30"]

1. Nf3 {[%emt 0:00:00]} Nf6 {[%emt 0:02:31]} 2. c4 {[%emt 0:00:04]} g6 {[%emt 0:00:29]} 3. Nc3 {[%emt 0:00:10]} Bg7 {[%emt 0:00:29]} 4. e4 {[%emt 0:00:12]} d6 {[%emt 0:00:08]} 5. d4 {[%emt 0:00:04]} O-O {[%emt 0:00:09]} 6. h3 {[%emt 0:00:03]} Na6 {[%emt 0:01:57]} 7. Be3 {[%emt 0:03:43]} c6 {[%emt 0:00:41]} 8. Nd2 {[%emt 0:15:25]} Nc7 {[%emt 0:10:17]} 9. Bd3 {[%emt 0:02:55]} a6 10. a4 {[%emt 0:06:44]} e5 {[%emt 0:10:47]} 11. d5 {[%emt 0:00:00]} c5 {[%emt 0:01:14]} 12. a5 {[%emt 0:06:21]} Nh5 {[%emt 0:06:39]} 13. g3 {[%emt 0:00:00]} Rb8 {[%emt 0:01:35]} 14. Na4 {[%emt 0:00:00]} Bd7 {[%emt 0:03:47]} 15. Nb6 {[%emt 0:00:00]} Be8 {[%emt 0:01:26]} 16. Be2 {[%emt 0:02:03]} Na8 {[%emt 0:10:25]} 17. Na4 {[%emt 0:07:03]} Nf6 {[%emt 0:07:19]} 18. g4 {[%emt 0:00:00]} Nd7 {[%emt 0:06:03]} 19. Nc3 {[%emt 0:00:00]} Nc7 {[%emt 0:00:47]} 20. h4 {[%emt 0:00:00]} b5 {[%emt 0:02:11]} 21. axb6 {[%emt 0:00:00]} Rxb6 {[%emt 0:00:19]} 22. Qc2 {[%emt 0:00:00]} Bf6 {[%emt 0:03:01]} 23. Nf3 {[%emt 0:00:00]} Qb8 {[%emt 0:01:24]} 24. Rb1 {[%emt 0:00:00]} Rb4 {[%emt 0:02:03]} 25. h5 {[%emt 0:00:33]} Bg7 {[%emt 0:09:26]} 26. g5 {[%emt 0:03:47]} a5 {[%emt 0:02:45]} 27. Bd2 {[%emt 0:02:55]} Rb7 {[%emt 0:01:55]} 28. Nd1 {[%emt 0:01:14]} Na6 {[%emt 0:06:18]} 29. Nc3 {[%emt 0:06:15]} Nb4 {[%emt 0:00:00]} 30. Qd1 {[%emt 0:00:17]} Nb6 {[%emt 0:00:00]} 31. Kf1 {[%emt 0:00:15]} Bd7 {[%emt 0:00:00]} 32. Kg2 {[%emt 0:00:46]} Qe8 {[%emt 0:00:00]} 33. Be3 {[%emt 0:03:53]} f5 {[%emt 0:00:28]} 34. h6 {[%emt 0:03:53]} Bh8 {[%emt 0:00:03]} 35. Ra1 {[%emt 0:00:15]} a4 {[%emt 0:00:40]} 36. Bd2 {[%emt 0:01:05]} Qe7 {[%emt 0:00:47]} 37. Rh4 {[%emt 0:03:07]} Rbb8 {[%emt 0:03:41]} 38. Rc1 {[%emt 0:07:11]} Rf7 {[%emt 0:00:00]} 39. Be3 {[%emt 0:01:35]} Rbf8 {[%emt 0:00:15]} 40. Kh2 {[%emt 0:01:59]} fxe4 {[%emt 0:00:44]} 41. Nxe4 {[%emt 0:00:13]} Rf4 {[%emt 0:00:12]} 42. Bxf4 {[%emt 0:03:50]} exf4 {[%emt 0:00:02]} 43. Nc3 {[%emt 0:00:02]} Rf5 {[%emt 0:01:55]} 44. Rg4 {[%emt 0:03:58]} Rf8 {[%emt 0:00:20]} 45. Rg1 {[%emt 0:00:20]} Qf7 {[%emt 0:00:13]} 46. Bd3 {[%emt 0:06:24]} Bc8 {[%emt 0:01:36]} 47. Bf1 {[%emt 0:04:43]} Qd7 {[%emt 0:00:09]} 48. b3 {[%emt 0:01:30]} a3 {[%emt 0:00:52]} 49. Qd2 {[%emt 0:00:29]} Qd8 {[%emt 0:03:55]} 50. Ra1 {[%emt 0:02:27]} a2 {[%emt 0:00:02]} 51. Re1 {[%emt 0:00:12]} Nd7 {[%emt 0:00:24]} 52. Nxa2 {[%emt 0:00:14]} Nxa2 {[%emt 0:00:00]} 53. Qxa2 {[%emt 0:00:04]} Ne5 {[%emt 0:01:44]} 54. Bg2 {[%emt 0:01:10]} Qd7 {[%emt 0:00:00]} 55. Nxe5 {[%emt 0:03:29]} Bxe5 {[%emt 0:00:00]} 56. f3 {[%emt 0:00:27]} Bd4 {[%emt 0:01:21]} 57. Qe2 {[%emt 0:03:30]} Be3 {[%emt 0:00:54]} 58. Qd3 {[%emt 0:01:07]} Qe7 {[%emt 0:00:01]} 59. Bh3 {[%emt 0:00:31]} Bxg1+ {[%emt 0:00:42]} 60. Rxg1 {[%emt 0:00:02]} Bxh3 {[%emt 0:00:07]} 61. Kxh3 {[%emt 0:00:01]} Ra8 {[%emt 0:00:31]} 62. Qc3 {[%emt 0:00:37]} Ra2 {[%emt 0:00:26]} 63. Re1 {[%emt 0:00:13]} Qd7+ {[%emt 0:00:57]} 64. Re6 {[%emt 0:00:02]} Ra8 {[%emt 0:00:49]} 65. Kh4 {[%emt 0:00:40]} Rf8 {[%emt 0:00:22]} 66. Rxd6 {[%emt 0:00:19]} Qa7 {[%emt 0:00:16]} 67. Re6 {[%emt 0:00:27]} Qd7 {[%emt 0:00:13]} 68. Qe5 {[%emt 0:00:17]} 1-0

[Event "XII Sabadell Open 2019"]
[Site "Sabadell"]
[Date "2019.09.07"]
[Round "6.4"]
[White "Umetsubo, Cesar Hidemitsu"]
[Black "Ortega Serra, Marc"]
[Result "1/2-1/2"]
[ECO "C06"]
[WhiteElo "2403"]
[BlackElo "2297"]
[Annotator "ChessBase"]
[PlyCount "65"]
[EventDate "2019.09.01"]
[EventCountry "ESP"]
[SourceTitle "playchess.com"]
[Source "ChessBase"]
[SourceQuality "1"]
[TimeControl "5400+30"]

1. e4 {[%emt 0:01:45]} e6 {[%emt 0:05:12]} 2. d4 {[%emt 0:00:10]} d5 {[%emt 0:00:10]} 3. Nd2 {[%emt 0:00:03]} Nf6 {[%emt 0:00:11]} 4. e5 {[%emt 0:00:06]} Nfd7 {[%emt 0:00:06]} 5. Bd3 {[%emt 0:00:11]} c5 {[%emt 0:00:07]} 6. c3 {[%emt 0:00:08]} Nc6 {[%emt 0:00:13]} 7. Ne2 {[%emt 0:00:06]} cxd4 {[%emt 0:00:03]} 8. cxd4 {[%emt 0:00:04]} f6 {[%emt 0:00:06]} 9. exf6 {[%emt 0:00:11]} Nxf6 {[%emt 0:00:05]} 10. Nf3 {[%emt 0:00:38]} Bd6 {[%emt 0:00:09]} 11. O-O {[%emt 0:00:12]} O-O {[%emt 0:00:04]} 12. Bf4 {[%emt 0:00:09]} Bxf4 {[%emt 0:00:46]} 13. Nxf4 {[%emt 0:00:03]} Ne4 {[%emt 0:00:07]} 14. Qc1 {[%emt 0:00:56]} Ng5 {[%emt 0:00:19]} 15. Nxg5 {[%emt 0:00:11]} Qxg5 {[%emt 0:00:04]} 16. Bxh7+ {[%emt 0:05:10]} Kxh7 {[%emt 0:00:21]} 17. Nxe6 {[%emt 0:00:02]} Qxc1 {[%emt 0:00:08]} 18. Nxf8+ {[%emt 0:00:05]} Kg8 {[%emt 0:00:04]} 19. Raxc1 {[%emt 0:00:12]} Kxf8 {[%emt 0:00:08]} 20. Rfd1 {[%emt 0:05:26]} Be6 {[%emt 0:03:22]} 21. f3 {[%emt 0:01:58]} Ke7 {[%emt 0:01:58]} 22. g3 {[%emt 0:08:02]} Rf8 {[%emt 0:01:49]} 23. Kg2 {[%emt 0:01:02]} g5 {[%emt 0:04:13]} 24. Rd2 {[%emt 0:01:39]} Kd6 {[%emt 0:00:36]} 25. Rh1 {[%emt 0:01:12]} g4 {[%emt 0:04:37]} 26. Rf1 {[%emt 0:01:25]} Rg8 {[%emt 0:05:46]} 27. fxg4 {[%emt 0:14:00]} Rxg4 {[%emt 0:00:07]} 28. Rf4 {[%emt 0:00:12]} Rxf4 {[%emt 0:01:00]} 29. gxf4 {[%emt 0:00:04]} Ne7 {[%emt 0:00:11]} 30. Kf3 {[%emt 0:04:13]} Nf5 {[%emt 0:01:47]} 31. Ke2 {[%emt 0:00:14]} Bd7 {[%emt 0:00:20]} 32. Kd3 {[%emt 0:01:34]} Nh4 {[%emt 0:04:48]} 33. Kc3 {[%emt 0:21:46]} 1/2-1/2

[Event "XII Sabadell Open 2019"]
[Site "Sabadell"]
[Date "2019.09.07"]
[Round "6.7"]
[White "Moskalenko, Viktor"]
[Black "Gomez Jurado, Luis Alberto"]
[Result "1-0"]
[ECO "D10"]
[WhiteElo "2475"]
[BlackElo "2307"]
[Annotator "ChessBase"]
[PlyCount "133"]
[EventDate "2019.09.01"]
[EventCountry "ESP"]
[SourceTitle "playchess.com"]
[Source "ChessBase"]
[SourceQuality "1"]
[TimeControl "5400+30"]

1. d4 {[%emt 0:00:02]} d5 {[%emt 0:02:32]} 2. c4 {[%emt 0:00:14]} c6 {[%emt 0:00:05]} 3. cxd5 {[%emt 0:01:39]} cxd5 {[%emt 0:00:06]} 4. Bf4 {[%emt 0:00:12]} Nc6 {[%emt 0:00:08]} 5. e3 {[%emt 0:00:10]} Nf6 {[%emt 0:00:14]} 6. Nc3 {[%emt 0:00:05]} a6 {[%emt 0:01:30]} 7. Rc1 {[%emt 0:00:51]} e6 {[%emt 0:00:50]} 8. Bd3 {[%emt 0:01:12]} Bd6 {[%emt 0:02:47]} 9. Nf3 {[%emt 0:03:52]} Bxf4 {[%emt 0:00:31]} 10. exf4 {[%emt 0:00:09]} Qd6 {[%emt 0:00:11]} 11. g3 {[%emt 0:03:25]} Bd7 {[%emt 0:11:57]} 12. Qd2 {[%emt 0:01:06]} O-O {[%emt 0:03:06]} 13. O-O {[%emt 0:00:11]} Rfc8 {[%emt 0:15:51]} 14. Rfd1 {[%emt 0:03:52]} b5 {[%emt 0:12:51]} 15. Ne2 {[%emt 0:04:46]} Rc7 {[%emt 0:02:12]} 16. Ne5 {[%emt 0:01:59]} Rac8 {[%emt 0:01:24]} 17. f3 {[%emt 0:04:21]} g6 {[%emt 0:06:56]} 18. Kf2 {[%emt 0:12:00]} Ne8 {[%emt 0:11:04]} 19. a3 {[%emt 0:02:47]} f6 {[%emt 0:01:01]} 20. Nxc6 {[%emt 0:00:09]} Rxc6 {[%emt 0:00:19]} 21. Rxc6 {[%emt 0:01:14]} Rxc6 {[%emt 0:00:49]} 22. Rc1 {[%emt 0:00:09]} Qc7 {[%emt 0:04:36]} 23. Rxc6 {[%emt 0:00:15]} Qxc6 {[%emt 0:01:34]} 24. Qa5 {[%emt 0:01:05]} Nc7 {[%emt 0:02:28]} 25. Ke3 {[%emt 0:01:53]} Kf7 {[%emt 0:00:19]} 26. Kd2 {[%emt 0:00:11]} Ne8 {[%emt 0:10:08]} 27. Qd8 {[%emt 0:00:35]} Qc7 {[%emt 0:00:19]} 28. Qxc7 {[%emt 0:00:24]} Nxc7 {[%emt 0:00:04]} 29. Kc3 {[%emt 0:00:53]} a5 {[%emt 0:00:12]} 30. Nc1 {[%emt 0:05:29]} Na6 {[%emt 0:09:29]} 31. Nb3 {[%emt 0:00:15]} a4 {[%emt 0:00:05]} 32. Nc5 {[%emt 0:10:48]} Nxc5 {[%emt 0:00:11]} 33. dxc5 {[%emt 0:00:02]} e5 {[%emt 0:00:06]} 34. Kb4 {[%emt 0:04:06]} d4 {[%emt 0:00:45]} 35. Ka5 {[%emt 0:00:45]} Bc6 {[%emt 0:02:18]} 36. Kb6 {[%emt 0:01:04]} Bxf3 {[%emt 0:00:07]} 37. c6 {[%emt 0:00:37]} e4 {[%emt 0:01:24]} 38. Bxb5 {[%emt 0:00:22]} d3 {[%emt 0:01:43]} 39. h3 {[%emt 0:01:03]} d2 {[%emt 0:03:56]} 40. c7 {[%emt 0:00:29]} d1=Q {[%emt 0:00:36]} 41. c8=Q {[%emt 0:00:03]} Qd4+ {[%emt 0:00:54]} 42. Ka5 {[%emt 0:00:37]} Qa7+ {[%emt 0:02:31]} 43. Kb4 {[%emt 0:00:17]} Qe7+ {[%emt 0:00:37]} 44. Kc3 {[%emt 0:00:37]} e3 {[%emt 0:00:53]} 45. Qd7 {[%emt 0:00:22]} Qxd7 {[%emt 0:01:15]} 46. Bxd7 {[%emt 0:00:02]} Bd1 {[%emt 0:00:19]} 47. Kd3 {[%emt 0:00:59]} Ke7 {[%emt 0:01:52]} 48. Bg4 {[%emt 0:00:16]} Bb3 {[%emt 0:00:16]} 49. Kxe3 {[%emt 0:00:06]} Kd6 {[%emt 0:00:13]} 50. Kd4 {[%emt 0:00:27]} h6 {[%emt 0:00:34]} 51. Be2 {[%emt 0:00:59]} g5 {[%emt 0:00:07]} 52. Bc4 {[%emt 0:00:26]} Bd1 {[%emt 0:00:30]} 53. h4 {[%emt 0:00:12]} gxf4 {[%emt 0:00:49]} 54. gxf4 {[%emt 0:00:02]} Kc6 {[%emt 0:00:48]} 55. Bd3 {[%emt 0:00:34]} Kd6 {[%emt 0:00:46]} 56. Ke4 {[%emt 0:00:09]} Bg4 {[%emt 0:01:30]} 57. Bb5 {[%emt 0:00:18]} f5+ {[%emt 0:00:31]} 58. Kd4 {[%emt 0:00:12]} Bd1 {[%emt 0:00:10]} 59. Bc4 {[%emt 0:03:11]} Bf3 {[%emt 0:00:19]} 60. Bd3 {[%emt 0:00:51]} Ke6 {[%emt 0:00:11]} 61. Bc2 {[%emt 0:00:11]} Bc6 {[%emt 0:00:11]} 62. Kc5 {[%emt 0:00:15]} Bd7 {[%emt 0:00:52]} 63. b4 {[%emt 0:00:31]} axb3 {[%emt 0:00:57]} 64. Bxb3+ {[%emt 0:00:02]} Kf6 {[%emt 0:00:14]} 65. a4 {[%emt 0:00:20]} Kg6 {[%emt 0:00:20]} 66. a5 {[%emt 0:00:11]} Bc8 {[%emt 0:00:17]} 67. Bd1 {[%emt 0:03:23]} 1-0

[Event "XII Sabadell Open 2019"]
[Site "Sabadell"]
[Date "2019.09.07"]
[Round "6.9"]
[White "Cifuentes, John Jairo"]
[Black "Valdes Romero, Leonardo"]
[Result "0-1"]
[ECO "B07"]
[WhiteElo "2141"]
[BlackElo "2399"]
[Annotator "ChessBase"]
[PlyCount "78"]
[EventDate "2019.09.01"]
[EventCountry "ESP"]
[SourceTitle "playchess.com"]
[Source "ChessBase"]
[SourceQuality "1"]
[TimeControl "5400+30"]

1. e4 {[%emt 0:26:50]} d6 {[%emt 0:00:09]} 2. d4 {[%emt 0:00:35]} Nf6 {[%emt 0:00:05]} 3. Nc3 {[%emt 0:00:20]} g6 {[%emt 0:00:37]} 4. Be3 {[%emt 0:00:35]} Bg7 {[%emt 0:00:13]} 5. f3 {[%emt 0:00:28]} c6 {[%emt 0:00:32]} 6. Qd2 {[%emt 0:00:14]} b5 {[%emt 0:00:59]} 7. a3 {[%emt 0:02:50]} Nbd7 {[%emt 0:06:04]} 8. g4 {[%emt 0:03:07]} Nb6 {[%emt 0:01:27]} 9. g5 {[%emt 0:03:39]} Nfd7 {[%emt 0:00:59]} 10. h4 {[%emt 0:00:54]} a5 {[%emt 0:01:03]} 11. h5 {[%emt 0:02:33]} Rg8 {[%emt 0:00:08]} 12. hxg6 {[%emt 0:05:34]} hxg6 {[%emt 0:01:16]} 13. Rh7 {[%emt 0:07:44]} Nc4 {[%emt 0:09:30]} 14. Bxc4 {[%emt 0:00:00]} bxc4 {[%emt 0:01:15]} 15. Qh2 {[%emt 0:00:00]} Nf8 {[%emt 0:00:26]} 16. Rh4 {[%emt 0:07:38]} Rb8 {[%emt 0:11:57]} 17. Rb1 {[%emt 0:07:17]} Bd7 {[%emt 0:15:37]} 18. Nge2 {[%emt 0:00:00]} Rb7 {[%emt 0:01:57]} 19. e5 {[%emt 0:07:16]} Bf5 {[%emt 0:07:28]} 20. Ng3 {[%emt 0:00:00]} Qb8 {[%emt 0:00:23]} 21. Nxf5 {[%emt 0:00:00]} gxf5 {[%emt 0:00:21]} 22. exd6 {[%emt 0:00:00]} Qxd6 {[%emt 0:11:42]} 23. Ne2 {[%emt 0:02:28]} Ng6 {[%emt 0:10:38]} 24. Rh7 {[%emt 0:02:26]} Qe6 {[%emt 0:04:57]} 25. Kf2 {[%emt 0:06:40]} f4 {[%emt 0:00:00]} 26. Nxf4 {[%emt 0:01:18]} Qf5 {[%emt 0:00:00]} 27. Nxg6 {[%emt 0:04:13]} Qxc2+ {[%emt 0:00:00]} 28. Kg3 {[%emt 0:00:11]} Qxg6 {[%emt 0:01:44]} 29. Rd1 {[%emt 0:01:42]} Rb3 {[%emt 0:00:43]} 30. Bf4 {[%emt 0:02:33]} Qe4 {[%emt 0:01:41]} 31. Qh5 {[%emt 0:03:48]} Kd7 {[%emt 0:05:39]} 32. Rf1 {[%emt 0:00:00]} Qg6 {[%emt 0:00:39]} 33. Qg4+ {[%emt 0:00:00]} e6 {[%emt 0:00:08]} 34. Rh2 {[%emt 0:00:00]} Bxd4 {[%emt 0:00:28]} 35. Rd2 {[%emt 0:00:05]} Rd3 {[%emt 0:00:27]} 36. Rc1 {[%emt 0:00:18]} Rxd2 {[%emt 0:01:47]} 37. Bxd2 {[%emt 0:00:05]} Qd3 {[%emt 0:00:10]} 38. Qf4 {[%emt 0:00:38]} f6 {[%emt 0:01:04]} 39. Bc3 {[%emt 0:01:33]} Rxg5+ {[%emt 0:01:17]} 0-1

[Event "XII Sabadell Open 2019"]
[Site "Sabadell"]
[Date "2019.09.07"]
[Round "6.11"]
[White "Quesada Vera, Liordis"]
[Black "Campos Cayuelas, Adria"]
[Result "1-0"]
[ECO "E63"]
[WhiteElo "2389"]
[BlackElo "2196"]
[Annotator "ChessBase"]
[PlyCount "65"]
[EventDate "2019.09.01"]
[EventCountry "ESP"]
[SourceTitle "playchess.com"]
[Source "ChessBase"]
[SourceQuality "1"]
[TimeControl "5400+30"]

1. Nf3 {[%emt 0:01:13]} Nf6 {[%emt 0:00:03]} 2. d4 {[%emt 0:00:20]} g6 {[%emt 0:00:19]} 3. g3 {[%emt 0:00:12]} Bg7 {[%emt 0:00:12]} 4. Bg2 {[%emt 0:00:00]} O-O {[%emt 0:00:07]} 5. O-O {[%emt 0:00:09]} d6 {[%emt 0:00:12]} 6. c4 {[%emt 0:00:00]} Nc6 {[%emt 0:00:32]} 7. Nc3 {[%emt 0:00:00]} a6 {[%emt 0:00:56]} 8. b3 {[%emt 0:00:00]} Rb8 {[%emt 0:00:48]} 9. Nd5 {[%emt 0:06:27]} b5 {[%emt 0:07:34]} 10. Nxf6+ {[%emt 0:00:00]} Bxf6 {[%emt 0:00:33]} 11. Bh6 {[%emt 0:00:00]} Re8 {[%emt 0:00:11]} 12. Rc1 {[%emt 0:00:00]} Bd7 {[%emt 0:05:52]} 13. Be3 {[%emt 0:24:56]} bxc4 {[%emt 0:14:35]} 14. Rxc4 {[%emt 0:00:00]} Nb4 {[%emt 0:14:46]} 15. Bd2 {[%emt 0:09:44]} Nd5 {[%emt 0:04:25]} 16. Ba5 {[%emt 0:00:00]} Rb5 {[%emt 0:00:00]} 17. Qd2 {[%emt 0:00:00]} Qb8 {[%emt 0:03:32]} 18. Rfc1 {[%emt 0:00:00]} Rc8 {[%emt 0:00:00]} 19. e4 {[%emt 0:00:00]} Nb6 {[%emt 0:00:00]} 20. R4c2 {[%emt 0:03:49]} Bg4 {[%emt 0:00:03]} 21. d5 {[%emt 0:01:03]} Nd7 {[%emt 0:08:47]} 22. Ne1 {[%emt 0:02:08]} Nc5 {[%emt 0:00:00]} 23. Rc4 {[%emt 0:02:21]} Bd7 {[%emt 0:00:12]} 24. b4 {[%emt 0:03:46]} Rxa5 {[%emt 0:04:31]} 25. bxa5 {[%emt 0:00:00]} c6 {[%emt 0:04:29]} 26. dxc6 {[%emt 0:02:18]} Bxc6 {[%emt 0:00:00]} 27. e5 {[%emt 0:06:56]} Bxe5 {[%emt 0:00:00]} 28. Nd3 {[%emt 0:01:13]} Nxd3 {[%emt 0:02:02]} 29. Qxd3 {[%emt 0:00:39]} Bd7 {[%emt 0:00:30]} 30. Qb3 {[%emt 0:00:51]} Rd8 {[%emt 0:01:01]} 31. Rb4 {[%emt 0:00:56]} Qa7 {[%emt 0:00:22]} 32. Rb7 {[%emt 0:00:14]} Qd4 {[%emt 0:00:16]} 33. Qb6 {[%emt 0:01:36]} 1-0

[Event "XII Sabadell Open 2019"]
[Site "Sabadell"]
[Date "2019.09.07"]
[Round "6.12"]
[White "Borrellas Comellas, Josep"]
[Black "Fernandez Aguilar, Francisco"]
[Result "1/2-1/2"]
[ECO "B70"]
[WhiteElo "1943"]
[BlackElo "2040"]
[Annotator "NA"]
[PlyCount "40"]
[EventDate "2019.09.01"]
[EventCountry "ESP"]
[SourceTitle "playchess.com"]
[Source "ChessBase"]
[SourceQuality "1"]
[TimeControl "5400+30"]

1. e4 {[%emt 0:00:00]} c5 {[%emt 0:00:00]} 2. Nf3 {[%emt 0:00:00]} d6 {[%emt 0:00:00]} 3. d4 {[%emt 0:00:00]} cxd4 {[%emt 0:00:00]} 4. Nxd4 {[%emt 0:00:00]} Nf6 {[%emt 0:00:05]} 5. Nc3 {[%emt 0:00:11]} g6 {[%emt 0:00:55]} 6. g3 {[%emt 0:00:49]} Bg7 {[%emt 0:00:25]} 7. Bg2 {[%emt 0:00:10]} O-O {[%emt 0:00:00]} 8. O-O {[%emt 0:00:13]} Nc6 {[%emt 0:02:01]} 9. Nxc6 {[%emt 0:01:57]} bxc6 {[%emt 0:00:24]} 10. e5 {[%emt 0:00:48]} dxe5 {[%emt 0:03:36]} 11. Qxd8 {[%emt 0:03:16]} Rxd8 {[%emt 0:00:00]} 12. Bxc6 {[%emt 0:00:43]} Rb8 {[%emt 0:00:00]} 13. Rd1 {[%emt 0:05:43]} Rd6 {[%emt 0:06:09]} 14. Rxd6 {[%emt 0:10:47]} exd6 {[%emt 0:00:09]} 15. Nd5 {[%emt 0:13:40]} Be6 {[%emt 0:13:40]} 16. c4 {[%emt 0:18:56]} Kf8 {[%emt 0:16:54]} 17. b3 {[%emt 0:00:00]} Rc8 {[%emt 0:08:11]} 18. Bb7 {[%emt 0:00:00]} Rb8 {[%emt 0:11:58]} 19. Bc6 {[%emt 0:00:00]} Rc8 {[%emt 0:01:25]} 20. Bb7 {[%emt 0:00:00]} Rb8 {[%emt 0:00:06]} 1/2-1/2

[Event "XII Sabadell Open 2019"]
[Site "Sabadell"]
[Date "2019.09.07"]
[Round "6.13"]
[White "Prats Rodriguez, Juan Bosco"]
[Black "Abreu Flores, Daniel"]
[Result "1-0"]
[ECO "C00"]
[WhiteElo "1936"]
[BlackElo "1905"]
[Annotator "NA"]
[PlyCount "119"]
[EventDate "2019.09.01"]
[EventCountry "ESP"]
[SourceTitle "playchess.com"]
[Source "ChessBase"]
[SourceQuality "1"]
[TimeControl "5400+30"]

1. e4 {[%emt 0:00:02]} e6 {[%emt 0:00:53]} 2. d3 {[%emt 0:00:14]} d5 {[%emt 0:00:07]} 3. Qe2 {[%emt 0:00:26]} Nf6 {[%emt 0:00:08]} 4. Nf3 {[%emt 0:00:46]} b6 {[%emt 0:00:34]} 5. e5 {[%emt 0:03:18]} Nfd7 {[%emt 0:00:29]} 6. g3 {[%emt 0:00:26]} Ba6 {[%emt 0:00:48]} 7. Bg2 {[%emt 0:01:00]} Nc6 {[%emt 0:02:59]} 8. O-O {[%emt 0:00:28]} Bc5 {[%emt 0:02:35]} 9. c3 {[%emt 0:08:03]} Be7 {[%emt 0:03:34]} 10. h4 {[%emt 0:04:04]} h6 {[%emt 0:02:23]} 11. h5 {[%emt 0:06:07]} O-O {[%emt 0:07:08]} 12. Re1 {[%emt 0:14:10]} f6 {[%emt 0:01:06]} 13. exf6 {[%emt 0:00:51]} Rxf6 {[%emt 0:00:58]} 14. b4 {[%emt 0:06:29]} e5 {[%emt 0:04:16]} 15. Qd1 {[%emt 0:23:41]} Kh8 {[%emt 0:05:22]} 16. a4 {[%emt 0:00:52]} Bb7 {[%emt 0:10:05]} 17. b5 {[%emt 0:04:35]} Na5 {[%emt 0:02:11]} 18. Nxe5 {[%emt 0:00:14]} Nxe5 {[%emt 0:00:44]} 19. Rxe5 {[%emt 0:05:43]} Bd6 {[%emt 0:02:10]} 20. Re2 {[%emt 0:05:49]} Bc8 {[%emt 0:00:05]} 21. Re1 {[%emt 0:05:10]} Qf8 {[%emt 0:03:17]} 22. Be3 {[%emt 0:02:56]} Be6 {[%emt 0:01:55]} 23. Bd4 {[%emt 0:02:03]} Bc5 {[%emt 0:06:13]} 24. Bxf6 {[%emt 0:02:44]} Qxf6 {[%emt 0:00:03]} 25. d4 {[%emt 0:01:31]} Rf8 {[%emt 0:00:57]} 26. Ra2 {[%emt 0:01:29]} Bd6 {[%emt 0:00:22]} 27. Qe2 {[%emt 0:02:01]} Bf7 {[%emt 0:05:18]} 28. Qg4 {[%emt 0:01:07]} Nc4 {[%emt 0:00:27]} 29. Rae2 {[%emt 0:01:44]} Qg5 {[%emt 0:01:10]} 30. Qxg5 {[%emt 0:00:49]} hxg5 {[%emt 0:00:01]} 31. Bf3 {[%emt 0:03:03]} Ra8 {[%emt 0:00:55]} 32. Nd2 {[%emt 0:02:56]} Nxd2 {[%emt 0:00:03]} 33. Rxd2 a6 {[%emt 0:00:17]} 34. bxa6 {[%emt 0:03:56]} Rxa6 {[%emt 0:00:02]} 35. Ra1 {[%emt 0:01:56]} Ra5 {[%emt 0:00:30]} 36. Rb2 {[%emt 0:00:36]} Be8 {[%emt 0:00:24]} 37. Be2 {[%emt 0:02:46]} g4 {[%emt 0:01:03]} 38. Bxg4 {[%emt 0:00:56]} b5 {[%emt 0:01:25]} 39. Be2 {[%emt 0:00:47]} c6 {[%emt 0:00:18]} 40. Rba2 {[%emt 0:00:38]} b4 {[%emt 0:01:38]} 41. cxb4 {[%emt 0:00:14]} Bxb4 {[%emt 0:00:18]} 42. Rb1 {[%emt 0:00:32]} Bd6 {[%emt 0:01:44]} 43. Rb6 {[%emt 0:00:10]} Kh7 {[%emt 0:01:21]} 44. Ra6 {[%emt 0:01:09]} Bb4 {[%emt 0:00:03]} 45. Rxa5 {[%emt 0:00:18]} Bxa5 {[%emt 0:00:01]} 46. Ra1 {[%emt 0:02:11]} Kh6 {[%emt 0:00:09]} 47. Bf3 {[%emt 0:01:56]} Kg5 {[%emt 0:00:44]} 48. Kf1 {[%emt 0:00:19]} Bd7 {[%emt 0:00:16]} 49. Rc1 {[%emt 0:02:12]} Bb4 {[%emt 0:00:26]} 50. Ke2 {[%emt 0:00:48]} Kf6 {[%emt 0:01:07]} 51. Ke3 {[%emt 0:00:24]} Ke7 {[%emt 0:00:24]} 52. g4 {[%emt 0:03:02]} Kd6 {[%emt 0:00:01]} 53. Bd1 {[%emt 0:02:09]} c5 {[%emt 0:00:22]} 54. dxc5+ {[%emt 0:00:29]} Bxc5+ {[%emt 0:00:47]} 55. Rxc5 {[%emt 0:00:39]} Kxc5 {[%emt 0:00:02]} 56. f4 {[%emt 0:01:02]} Bc8 {[%emt 0:00:41]} 57. f5 {[%emt 0:00:40]} d4+ {[%emt 0:00:17]} 58. Kf4 {[%emt 0:00:22]} d3 {[%emt 0:00:55]} 59. g5 {[%emt 0:00:39]} d2 {[%emt 0:00:34]} 60. h6 {[%emt 0:00:32]} 1-0